bitfinex/quotes_SOLUSD_20250708
["timestamp","ask_amount","ask_price","bid_price","bid_amount"]
[1751992862871,4.98222402,150.32,150.31,5.95262154]
[1751992863169,4.98222402,150.32,150.31,40.35262154]
[1751992864842,4.98222402,150.32,150.31,65.6551877]
[1751992865350,4.98222402,150.32,150.31,71.60780924]
[1751992865554,147.5,150.35,150.31,65.6551877]
[1751992865766,4.98115184,150.34,150.32,18.64964886]
[1751992866067,147.5,150.35,150.33,34.4]
[1751992866268,4.98075017,150.34,150.33,34.4]
[1751992866969,4.98075017,150.34,150.33,40.35262154]
[1751992868856,4.98075017,150.34,150.33,34.4]
[1751992871978,12.44926039,150.34,150.31,18.64964886]
[1751992872278,4.98075017,150.33,150.32,40.35262154]
[1751992872657,4.98075017,150.33,150.32,34.4]
[1751992873654,4.98075017,150.33,150.32,40.35262154]
[1751992874657,4.98075017,150.33,150.32,59.0022704]
[1751992874859,4.98075017,150.33,150.32,65.65474512]
[1751992875363,147.5,150.35,150.33,18.64964886]
[1751992875561,147.5,150.35,150.34,59.0022704]
[1751992875878,152.48048321,150.35,150.34,59.0022704]
[1751992876280,4.98048321,150.35,150.34,59.0022704]
[1751992876484,4.98048321,150.35,150.34,60.5206704]
[1751992876659,0.06,150.37,150.36,25.30035383]
[1751992876859,5.03971999,150.37,150.36,58.9822704]
[1751992878580,5.03971999,150.37,150.36,53.02964886]
[1751992878766,5.03971999,150.37,150.36,58.9822704]
[1751992880183,5.03971999,150.37,150.36,34.38]
[1751992880359,5.03971999,150.37,150.35,5.95262154]
[1751992880566,5.03971999,150.37,150.33,6.65176758]
[1751992880567,4.97971999,150.36,150.34,18.64964886]
[1751992880767,0.06,150.37,150.35,40.33262154]
[1751992880965,4.977807,150.36,150.35,40.33262154]
[1751992881462,4.977807,150.36,150.35,5.95262154]
[1751992881657,4.977807,150.36,150.35,40.33262154]
[1751992881860,4.977807,150.36,150.35,34.38]
[1751992883284,4.977807,150.36,150.35,5.95262154]
[1751992883489,4.977807,150.36,150.35,40.33262154]
[1751992883691,4.97812167,150.36,150.35,58.9822704]
[1751992884082,0.06,150.37,150.36,18.64964886]
[1751992884304,0.06,150.37,150.36,24.6022704]
[1751992884468,0.06,150.37,150.36,26.1215704]
[1751992884962,0.06,150.37,150.36,32.77227537]
[1751992885163,0.06,150.37,150.36,39.09827537]
[1751992888673,1e-08,150.37,150.36,45.05089691]
[1751992890193,1e-08,150.37,150.36,39.09827537]
[1751992893097,0.2,150.43,150.39,26.0]
[1751992893298,0.2,150.43,150.42,50.6022704]
[1751992893593,0.2,150.43,150.42,84.9622704]
[1751992894176,1e-08,150.43,150.42,84.9622704]
[1751992894496,1e-08,150.43,150.42,86.6224704]
[1751992894994,1e-08,150.43,150.42,93.27052252]
[1751992896790,1e-08,150.44,150.43,25.29725904]
[1751992896993,1e-08,150.44,150.43,31.24988058]
[1751992897289,1e-08,150.44,150.43,34.64675918]
[1751992898000,1e-08,150.44,150.43,39.90217023]
[1751992906300,1e-08,150.44,150.43,60.64675918]
[1751992906499,1e-08,150.44,150.43,94.96675918]
[1751992906687,1e-08,150.44,150.43,68.96675918]
[1751992911483,1e-08,150.44,150.43,34.64675918]
[1751992911685,1e-08,150.44,150.43,68.96675918]
[1751992919005,1e-08,150.44,150.43,68.99675918]
[1751992920515,1e-08,150.44,150.43,18.67964886]
[1751992920893,1e-08,150.44,150.43,65.57988058]
[1751992921219,1e-08,150.44,150.43,59.62725904]
[1751992921410,1e-08,150.44,150.43,31.27988058]
[1751992921605,1e-08,150.44,150.43,18.67964886]
[1751992921797,1e-08,150.44,150.43,0.03]
[1751992922001,1e-08,150.44,150.43,34.33]
[1751992922828,1e-08,150.44,150.43,0.03]
[1751992923026,1e-08,150.44,150.43,34.33]
[1751992924405,1e-08,150.44,150.43,0.03]
[1751992924597,1e-08,150.44,150.43,34.33]
[1751992928512,10.91095067,150.44,150.43,0.03]
[1751992929023,10.91095067,150.44,150.43,34.33]
[1751992929223,18.35100402,150.44,150.43,34.33]
[1751992930222,12.40033734,150.44,150.43,34.33]
[1751992930424,4.95832913,150.44,150.43,34.33]
[1751992931824,4.95832913,150.44,150.43,0.03]
[1751992932028,4.95832913,150.44,150.43,34.33]
[1751992932226,1e-08,150.44,150.43,34.33]
[1751992933117,10.91550498,150.44,150.43,0.03]
[1751992933321,18.36147984,150.44,150.43,0.03]
[1751992933624,25.00864814,150.44,150.43,0.03]
[1751992935524,18.36147984,150.44,150.43,0.03]
[1751992935734,10.91550498,150.44,150.43,0.03]
[1751992935912,4.96288344,150.44,150.43,34.31]
[1751992936647,1e-08,150.44,150.43,34.31]
[1751992936937,1e-08,150.44,150.43,65.55988058]
[1751992937316,1e-08,150.44,150.43,34.31]
[1751992940114,10.91374799,150.44,150.43,0.03]
[1751992940438,10.91374799,150.44,150.43,34.31]
[1751992940636,17.56079604,150.44,150.43,34.31]
[1751992945249,10.91362774,150.44,150.43,34.31]
[1751992945824,17.56079604,150.44,150.43,34.31]
[1751992946619,4.9610062,150.44,150.43,34.31]
[1751992946812,4.95997428,150.44,150.43,34.31]
[1751992949931,17.55976412,150.44,150.43,34.31]
[1751992951865,11.60714258,150.44,150.43,34.31]
[1751992952028,17.55976412,150.44,150.43,34.31]
[1751992952227,17.55976412,150.44,150.43,0.03]
[1751992952423,25.00841541,150.44,150.43,0.03]
[1751992952645,57.66631541,150.44,150.43,0.03]
[1751992952952,57.67334241,150.44,150.43,0.03]
[1751992956752,19.06282087,150.44,150.43,0.03]
[1751992956958,25.01544241,150.44,150.43,0.03]
[1751992957255,25.01666269,150.44,150.43,0.03]
[1751992958754,18.36949439,150.44,150.43,0.03]
[1751992958941,12.41687285,150.44,150.43,0.03]
[1751992959139,18.36949439,150.44,150.43,0.03]
[1751992959746,10.9208431,150.44,150.43,0.03]
[1751992959942,4.96822156,150.44,150.43,0.03]
[1751992960539,4.96822156,150.44,150.43,24.6322704]
[1751992961644,4.96822156,150.44,150.43,31.27988058]
[1751992962058,1e-08,150.44,150.43,31.27988058]
[1751992964152,4.97013953,150.44,150.43,31.27988058]
[1751992966166,1e-08,150.44,150.43,31.27988058]
[1751992967364,1e-08,150.44,150.43,18.67964886]
[1751992967571,4.97294937,150.44,150.43,18.67964886]
[1751992967958,4.97294937,150.44,150.43,24.6322704]
[1751992968167,4.97294937,150.44,150.43,31.27988058]
[1751992968745,4.9730609,150.44,150.43,31.27988058]
[1751992969469,1e-08,150.44,150.43,31.27988058]
[1751992969644,1e-08,150.44,150.43,25.32725904]
[1751992969842,1e-08,150.44,150.43,31.27988058]
[1751992971960,1e-08,150.44,150.43,0.03]
[1751992972273,1e-08,150.44,150.43,5.98262154]
[1751992972454,1e-08,150.44,150.43,40.22262154]
[1751992972768,1e-08,150.44,150.43,34.27]
[1751992974172,1e-08,150.44,150.43,0.03]
[1751992974373,1e-08,150.44,150.43,34.27]
[1751992975058,1e-08,150.44,150.43,40.91761018]
[1751992975258,1e-08,150.44,150.43,34.27]
[1751992975568,1e-08,150.44,150.43,40.91761018]
[1751992975870,1e-08,150.44,150.43,34.27]
[1751992976064,1e-08,150.44,150.43,0.03]
[1751992976272,1e-08,150.44,150.43,40.91761018]
[1751992976499,1e-08,150.44,150.43,46.87023172]
[1751992977351,1e-08,150.44,150.43,40.91761018]
[1751992977552,1e-08,150.44,150.43,46.87023172]
[1751992978368,1e-08,150.44,150.43,65.51988058]
[1751992980384,4.97114078,150.44,150.43,65.51988058]
[1751992981377,1e-08,150.44,150.43,65.51988058]
[1751992981970,1e-08,150.44,150.43,34.27]
[1751992982282,4.97108926,150.44,150.43,34.27]
[1751992982458,4.97108926,150.44,150.43,40.91761018]
[1751992982977,4.97108926,150.44,150.43,40.22262154]
[1751992983647,1e-08,150.44,150.43,40.22262154]
[1751992983851,4.97123993,150.44,150.43,40.22262154]
[1751992984067,4.97123993,150.44,150.43,46.87023172]
[1751992984461,1e-08,150.44,150.43,40.22262154]
[1751992984655,4.97113088,150.44,150.43,40.22262154]
[1751992985479,4.97113088,150.44,150.43,34.27]
[1751992985681,4.97113088,150.44,150.43,40.22262154]
[1751992986068,4.97113088,150.44,150.43,46.87023172]
[1751992986762,1e-08,150.44,150.43,65.51988058]
[1751992987882,1e-08,150.44,150.43,65.49988058]
[1751992990868,1e-08,150.44,150.43,58.8522704]
[1751992991071,1e-08,150.44,150.43,65.49988058]
[1751993005373,1e-08,150.44,150.43,59.54725904]
[1751993005573,1e-08,150.44,150.43,65.49988058]
[1751993007404,1e-08,150.44,150.43,65.47988058]
[1751993011814,1e-08,150.44,150.43,59.52725904]
[1751993012119,1e-08,150.44,150.43,31.27988058]
[1751993012410,1e-08,150.44,150.43,65.45988058]
[1751993014478,1e-08,150.44,150.43,31.27988058]
[1751993014684,1e-08,150.44,150.43,65.45988058]
[1751993022608,1e-08,150.44,150.43,59.50725904]
[1751993022907,1e-08,150.44,150.43,65.45988058]
[1751993025788,1e-08,150.44,150.43,59.50725904]
[1751993025999,1e-08,150.44,150.43,65.45988058]
[1751993027006,1e-08,150.44,150.43,65.43988058]
[1751993040905,1e-08,150.44,150.43,63.29097054]
[1751993041521,1e-08,150.44,150.43,0.03]
[1751993041719,16.26437608,150.44,150.43,0.03]
[1751993043821,17.09527211,150.44,150.43,0.03]
[1751993044316,23.74244041,150.44,150.43,0.03]
[1751993044814,25.8874368,150.44,150.43,0.03]
[1751993046312,19.2402685,150.44,150.43,0.03]
[1751993046505,25.8874368,150.44,150.43,0.03]
[1751993046917,14.25628694,150.44,150.43,0.03]
[1751993047427,20.90345524,150.44,150.43,0.03]
[1751993047636,14.25628694,150.44,150.43,0.03]
[1751993047934,13.42677223,150.44,150.43,7.44755868]
[1751993048430,145.96057863,150.45,150.43,12.39106759]
[1751993048727,119.33969767,150.45,150.44,39.08350891]
[1751993048934,126.79877809,150.45,150.44,39.08350891]
[1751993049434,126.79877809,150.45,150.44,45.0322168]
[1751993049612,126.79877809,150.45,150.44,39.08350891]
[1751993049931,139.39421246,150.45,150.44,4.94350891]
[1751993050227,141.04221246,150.45,150.44,4.94350891]
[1751993050808,21.70251479,150.45,150.44,4.94350891]
[1751993051009,22.04033249,150.45,150.44,4.94350891]
[1751993051417,22.04033249,150.45,150.43,0.03]
[1751993051621,13.40778831,150.44,150.43,0.03]
[1751993051824,13.40778831,150.44,150.43,4.9729521]
[1751993052225,14.10624872,150.44,150.43,0.03]
[1751993052421,20.05495661,150.44,150.43,0.03]
[1751993053740,14.10624872,150.44,150.43,0.03]
[1751993054038,20.05495661,150.44,150.43,0.03]
[1751993055237,7.45908042,150.44,150.43,0.03]
[1751993055423,5.94870789,150.48,150.44,18.64964886]
[1751993055628,7.79110005,150.47,150.45,34.14]
[1751993055928,7.45328235,150.46,150.45,34.14]
[1751993056424,13.40199024,150.46,150.45,34.14]
[1751993056748,13.40195174,150.46,150.43,34.17]
[1751993056952,5.94870789,150.45,150.43,34.17]
[1751993057115,6.28652559,150.45,150.43,34.17]
[1751993058823,0.3378177,150.45,150.43,34.17]
[1751993059749,147.5,150.44,150.43,34.17]
[1751993060350,147.5,150.44,150.43,41.5798059]
[1751993061845,147.5,150.44,150.43,48.22741608]
[1751993062043,147.5,150.44,150.43,72.82577283]
[1751993062340,128.78521307,150.44,150.43,72.82577283]
[1751993062840,128.78521307,150.44,150.43,60.22945476]
[1751993063448,128.78521307,150.44,150.43,69.4923784]
[1751993063831,128.78521307,150.44,150.43,76.13998858]
[1751993064444,128.78521307,150.44,150.43,66.87706494]
[1751993064825,128.78521307,150.44,150.43,60.22945476]
[1751993065449,128.78521307,150.44,150.43,69.4923784]
[1751993065641,12.59462217,150.47,150.43,76.13998858]
[1751993065948,12.59462217,150.47,150.44,7.4098059]
[1751993065949,12.93243987,150.47,150.44,7.4098059]
[1751993066147,12.93243987,150.47,150.45,41.5298059]
[1751993066349,6.28652559,150.47,150.46,7.4098059]
[1751993067715,0.3378177,150.47,150.46,7.4098059]
[1751993067917,128.78521307,150.48,150.46,7.4098059]
[1751993068141,141.71714004,150.48,150.47,7.4098059]
[1751993068329,141.37932234,150.48,150.47,7.4098059]
[1751993071553,12.59410927,150.48,150.47,7.4098059]
[1751993071749,6.28652559,150.49,150.47,7.4098059]
[1751993071938,12.93148538,150.49,150.48,7.4098059]
[1751993072949,6.98277749,150.49,150.48,7.4098059]
[1751993073139,0.3378177,150.49,150.48,7.4098059]
[1751993073344,147.5,150.49,150.48,7.4098059]
[1751993075644,147.5,150.49,150.47,34.12]
[1751993075831,147.5,150.49,150.47,46.71451495]
[1751993076030,0.2,150.5,150.48,24.59835675]
[1751993076232,0.2,150.5,150.47,40.76580706]
[1751993076233,0.2,150.5,150.49,58.71835675]
[1751993076731,0.2,150.5,150.49,84.71835675]
[1751993077271,0.2,150.5,150.49,91.36331654]
[1751993078736,0.2,150.5,150.49,34.1]
[1751993078947,6.14870789,150.5,150.49,34.1]
[1751993079256,6.14870789,150.5,150.44,22.77180474]
[1751993079257,12.79322616,150.5,150.45,32.64655652]
[1751993079558,12.79322616,150.5,150.46,52.74964886]
[1751993080458,12.79322616,150.5,150.47,34.1]
[1751993080961,6.14870789,150.5,150.47,34.1]
[1751993081163,6.48652559,150.5,150.47,34.1]
[1751993081964,13.13104909,150.5,150.47,34.1]
[1751993082141,13.13104909,150.5,150.48,34.1]
[1751993083351,6.48652559,150.5,150.48,34.1]
[1751993083864,13.13105533,150.5,150.48,34.1]
[1751993084848,5.94870789,150.49,150.48,34.1]
[1751993085045,5.94870789,150.49,150.48,7.40478435]
[1751993085347,12.59366768,150.49,150.48,7.40478435]
[1751993086570,12.59366768,150.49,150.46,34.1]
[1751993086866,5.94870789,150.47,150.46,34.1]
[1751993088047,160.09456807,150.47,150.43,0.03]
[1751993088250,5.94870789,150.45,150.44,34.1]
[1751993088765,5.94870789,150.45,150.43,0.03]
[1751993088967,5.94870789,150.45,150.43,34.13]
[1751993089676,5.94870789,150.45,150.44,4.94265535]
[1751993090765,5.94870789,150.46,150.44,4.94265535]
[1751993090970,5.94870789,150.46,150.45,4.94265535]
[1751993091470,5.94870789,150.46,150.43,40.77748112]
[1751993091868,5.94870789,150.46,150.43,6.67748112]
[1751993092053,5.94870789,150.46,150.44,34.1]
[1751993092252,160.09455126,150.47,150.44,34.1]
[1751993092453,147.5,150.46,150.44,34.1]
[1751993092662,153.44870789,150.46,150.44,34.1]
[1751993092865,160.09511832,150.46,150.44,34.1]
[1751993093066,153.44870789,150.46,150.44,34.1]
[1751993094576,153.44870789,150.46,150.43,0.03]
[1751993094781,153.44870789,150.46,150.44,34.1]
[1751993096625,147.5,150.46,150.44,34.1]
[1751993099791,153.44870789,150.46,150.44,34.1]
[1751993100574,5.94870789,150.45,150.43,0.03]
[1751993100788,5.94870789,150.44,150.43,34.11]
[1751993101091,5.94870789,150.44,150.43,0.03]
[1751993101298,5.94870789,150.45,150.43,0.03]
[1751993101674,5.94870789,150.45,150.43,34.11]
[1751993101863,13.40887657,150.45,150.43,34.11]
[1751993102697,7.46016868,150.45,150.43,34.11]
[1751993102876,13.40887657,150.45,150.43,34.11]
[1751993103696,5.94870789,150.44,150.43,34.11]
[1751993103897,153.44870789,150.44,150.43,0.03]
[1751993104126,160.90889383,150.44,150.43,0.03]
[1751993104290,153.44870789,150.44,150.43,0.03]
[1751993104690,12.59587619,150.44,150.43,0.03]
[1751993104999,20.05568426,150.44,150.43,0.03]
[1751993105906,54.13568426,150.44,150.43,0.03]
[1751993106071,80.13568426,150.44,150.43,0.03]
[1751993106673,54.13568426,150.44,150.43,0.03]
[1751993107183,26.0,150.41,150.35,18.64964886]
[1751993107386,5.94870789,150.39,150.35,58.67835675]
[1751993107993,5.94870789,150.39,150.35,65.32937335]
[1751993109211,5.94870789,150.38,150.35,34.08]
[1751993109415,5.94870789,150.38,150.34,5.94870789]
[1751993109416,5.94870789,150.37,150.34,18.64964886]
[1751993109599,5.94870789,150.37,150.34,52.72964886]
[1751993110102,5.94870789,150.38,150.34,58.67835675]
[1751993110490,5.94870789,150.37,150.34,52.72964886]
[1751993110696,5.94870789,150.38,150.34,58.67835675]
[1751993111106,6.64893617,150.4,150.34,58.67835675]
[1751993111327,5.94870789,150.39,150.35,5.94870789]
[1751993111714,5.94870789,150.39,150.35,12.5997016]
[1751993112517,5.94870789,150.39,150.35,12.6297016]
[1751993112722,5.94870789,150.39,150.35,46.7097016]
[1751993113115,147.5,150.38,150.35,46.7097016]
[1751993114905,7.4338013,150.37,150.35,46.7097016]
[1751993115125,7.4338013,150.36,150.35,46.7097016]
[1751993116199,7.4338013,150.36,150.35,65.35935046]
[1751993116405,7.4338013,150.36,150.35,91.35935046]
[1751993116614,147.5,150.41,150.36,18.64964886]
[1751993116806,147.5,150.41,150.4,5.94870789]
[1751993117111,154.92795421,150.41,150.4,40.02870789]
[1751993117506,154.92795421,150.41,150.4,34.08]
[1751993118799,160.8766621,150.41,150.4,34.08]
[1751993119045,167.52515621,150.41,150.35,7.56260789]
[1751993119337,5.94870789,150.39,150.36,34.08]
[1751993119536,7.42795421,150.38,150.36,34.08]
[1751993119740,5.94870789,150.4,150.36,34.08]
[1751993119899,7.4274637,150.39,150.36,34.08]
[1751993120099,7.4274637,150.38,150.36,34.08]
[1751993120398,12.59795456,150.4,150.36,34.08]
[1751993120598,7.42656054,150.39,150.36,34.08]
[1751993120825,7.42656054,150.38,150.36,34.08]
[1751993121031,7.42656054,150.37,150.36,34.08]
[1751993121326,12.59795456,150.4,150.36,34.08]
[1751993121527,7.42585163,150.39,150.36,34.08]
[1751993121725,7.42585163,150.38,150.36,34.08]
[1751993121929,12.59795456,150.4,150.36,34.08]
[1751993122226,7.42576395,150.39,150.36,40.02870789]
[1751993122406,7.42576395,150.38,150.36,40.02870789]
[1751993122607,12.59795456,150.4,150.36,40.02870789]
[1751993122808,7.42557946,150.39,150.36,40.02870789]
[1751993123017,7.42557946,150.38,150.36,34.08]
[1751993123228,12.59795456,150.4,150.36,34.08]
[1751993123412,7.42521134,150.39,150.36,34.08]
[1751993123728,6.64924667,150.4,150.36,34.08]
[1751993123931,13.37422933,150.39,150.36,34.08]
[1751993124114,5.94870789,150.39,150.36,34.08]
[1751993125625,12.59795456,150.4,150.36,46.67939037]
[1751993125811,7.42721871,150.39,150.37,5.94870789]
[1751993126133,7.42721871,150.38,150.37,5.94870789]
[1751993126335,7.42721871,150.38,150.37,24.59835675]
[1751993126674,147.5,150.4,150.38,25.29930921]
[1751993126828,147.5,150.4,150.39,40.02870789]
[1751993127129,154.92734582,150.4,150.39,40.02870789]
[1751993127332,154.92734582,150.4,150.39,34.08]
[1751993128836,160.87605371,150.4,150.37,34.08]
[1751993129131,5.94870789,150.38,150.35,0.03]
[1751993129331,7.42734582,150.37,150.36,34.08]
[1751993129716,7.42734582,150.37,150.35,0.03]
[1751993129929,7.43385769,150.36,150.35,34.11]
[1751993130734,7.43385769,150.36,150.35,40.05870789]
[1751993132137,7.43385769,150.36,150.35,0.03]
[1751993132337,7.43385769,150.36,150.35,34.11]
[1751993132836,20.03327055,150.36,150.35,0.03]
[1751993134933,13.38256558,150.36,150.35,0.03]
[1751993135514,7.43385769,150.36,150.35,0.03]
[1751993135729,7.43385769,150.36,150.35,5.97870789]
[1751993135936,7.43385769,150.36,150.35,40.05870789]
[1751993136414,7.43385769,150.36,150.35,65.35950407]
[1751993138429,12.65657213,150.43,150.36,18.64964886]
[1751993138617,12.65657213,150.43,150.35,65.35950407]
[1751993138618,7.43956121,150.42,150.38,24.59835675]
[1751993138830,7.43956121,150.41,150.39,34.08]
[1751993139122,7.43956121,150.4,150.39,34.08]
[1751993140342,7.44113061,150.4,150.39,34.08]
[1751993140642,7.44113061,150.4,150.39,40.02870789]
[1751993142446,7.44113061,150.4,150.39,34.08]
[1751993142633,154.94113061,150.4,150.39,34.08]
[1751993142835,161.59006678,150.4,150.39,34.08]
[1751993143040,167.53877467,150.4,150.35,6.68106071]
[1751993143228,7.44113061,150.39,150.37,34.06]
[1751993143543,147.5,150.38,150.37,34.06]
[1751993144136,154.94951708,150.38,150.37,34.06]
[1751993147734,154.94951708,150.38,150.36,5.94870789]
[1751993148055,147.5,150.38,150.37,34.06]
[1751993148268,154.95980048,150.38,150.37,58.65835675]
[1751993148462,147.5,150.38,150.37,58.65835675]
[1751993149255,147.5,150.38,150.37,65.30861943]
[1751993150954,147.5,150.38,150.37,5.94870789]
[1751993151161,147.5,150.38,150.35,6.68101934]
[1751993151454,147.5,150.38,150.36,34.06]
[1751993153555,147.5,150.38,150.35,12.62972723]
[1751993153854,147.5,150.38,150.36,34.06]
[1751993154959,7.46506195,150.37,150.35,0.03]
[1751993155159,153.44870789,150.38,150.36,34.06]
[1751993155372,7.46518156,150.37,150.36,34.06]
[1751993156041,7.46518156,150.37,150.35,0.03]
[1751993156344,153.44870789,150.38,150.36,34.06]
[1751993156545,7.46515858,150.37,150.36,34.06]
[1751993157446,7.46515858,150.37,150.36,34.09]
[1751993160362,7.46515858,150.37,150.36,65.33906172]
[1751993160666,147.5,150.38,150.37,18.64964886]
[1751993160835,147.5,150.38,150.37,24.59835675]
[1751993161643,147.5,150.38,150.37,31.24861943]
[1751993165140,147.5,150.38,150.37,25.29991154]
[1751993165343,147.5,150.38,150.37,31.24861943]
[1751993165744,147.5,150.38,150.36,40.74059296]
[1751993165952,147.5,150.38,150.37,5.94870789]
[1751993166359,147.5,150.38,150.36,5.97870789]
[1751993166667,147.5,150.38,150.37,34.04]
[1751993166853,154.96419084,150.38,150.37,34.04]
[1751993167568,154.96419084,150.38,150.36,0.03]
[1751993167736,147.5,150.38,150.37,34.04]
[1751993167940,154.96446905,150.38,150.36,34.07]
[1751993168139,7.46446905,150.37,150.36,0.03]
[1751993168366,7.46446905,150.37,150.36,34.07]
[1751993168741,7.46446905,150.37,150.36,0.03]
[1751993170171,7.46446905,150.37,150.36,12.62941286]
[1751993170353,7.46446905,150.37,150.36,5.97870789]
[1751993170675,7.46446905,150.37,150.36,0.03]
[1751993174344,7.46446905,150.37,150.36,34.07]
[1751993176179,7.46446905,150.37,150.36,0.03]
[1751993176478,20.06343962,150.37,150.36,0.03]
[1751993179207,7.46720529,150.37,150.36,0.03]
[1751993182264,20.06617586,150.37,150.36,0.03]
[1751993190091,147.44,150.35,150.3,40.01870789]
[1751993190294,154.90720529,150.34,150.3,40.01870789]
[1751993190473,7.46720529,150.33,150.3,40.01870789]
[1751993190676,147.44,150.34,150.3,40.01870789]
[1751993190904,7.46412292,150.33,150.3,40.01870789]
[1751993191098,147.44,150.34,150.31,5.94870789]
[1751993191289,7.46390576,150.33,150.31,5.94870789]
[1751993191490,160.04066064,150.34,150.3,5.97870789]
[1751993191809,7.46267677,150.33,150.3,5.97870789]
[1751993191983,5.94870789,150.33,150.3,0.03]
[1751993192382,147.44,150.32,150.3,0.03]
[1751993194786,147.44,150.32,150.3,5.97870789]
[1751993195202,154.09257243,150.32,150.3,0.03]
[1751993195391,7.45749498,150.31,150.3,0.03]
[1751993195592,7.45752413,150.31,150.3,0.03]
[1751993196384,6.65257243,150.32,150.3,0.03]
[1751993198209,14.10651158,150.32,150.3,0.03]
[1751993198416,6.65257243,150.32,150.3,0.03]
[1751993199989,12.60128032,150.32,150.3,0.03]
[1751993200515,5.94870789,150.32,150.3,0.03]
[1751993200815,13.39933058,150.33,150.3,0.03]
[1751993201019,7.45062269,150.32,150.3,0.03]
[1751993202217,20.05221444,150.32,150.3,0.03]
[1751993202430,12.60159175,150.32,150.3,0.03]
[1751993202712,5.94870789,150.31,150.3,0.03]
[1751993202904,13.39687372,150.31,150.3,0.03]
[1751993204424,20.04979102,150.31,150.3,0.03]
[1751993205919,14.10108313,150.31,150.3,0.03]
[1751993206119,20.04979102,150.31,150.3,0.03]
[1751993207895,14.10108313,150.31,150.3,0.03]
[1751993208222,20.04979102,150.31,150.3,0.03]
[1751993211743,12.60162519,150.31,150.3,0.03]
[1751993212222,20.0462802,150.31,150.3,0.03]
[1751993212799,46.0462802,150.31,150.3,0.03]
[1751993214815,40.09757231,150.31,150.3,0.03]
[1751993215018,46.0462802,150.31,150.3,0.03]
[1751993217347,33.44465501,150.31,150.3,0.03]
[1751993217514,40.09757231,150.31,150.3,0.03]
[1751993218636,33.44465501,150.31,150.3,0.03]
[1751993218819,32.65266871,150.32,150.3,0.03]
[1751993219025,38.6013766,150.32,150.3,0.03]
[1751993219225,7.44539029,150.31,150.3,0.03]
[1751993223424,6.65114732,150.35,150.3,5.97870789]
[1751993223627,13.39905971,150.34,150.3,5.97870789]
[1751993223844,7.45035182,150.33,150.3,5.97870789]
[1751993224350,7.45035182,150.32,150.3,5.97870789]
[1751993224551,5.94870789,150.34,150.3,5.97870789]
[1751993224730,7.4516348,150.33,150.3,0.03]
[1751993224934,7.4516348,150.32,150.3,0.03]
[1751993225150,7.4516348,150.31,150.3,0.03]
[1751993225341,5.94870789,150.34,150.3,0.03]
[1751993225654,6.65247472,150.32,150.3,0.03]
[1751993227451,7.45852859,150.31,150.3,0.03]
[1751993228750,14.11144589,150.31,150.3,0.03]
[1751993230831,7.45852859,150.31,150.3,0.03]
[1751993232161,14.11144589,150.31,150.3,0.03]
[1751993232541,20.06015378,150.31,150.3,0.03]
[1751993232940,14.11144589,150.31,150.3,0.03]
[1751993233670,7.45852859,150.31,150.3,0.03]
[1751993242263,14.11144589,150.31,150.3,0.03]
[1751993242844,20.06015378,150.31,150.3,0.03]
[1751993248445,147.47,150.29,150.27,0.1]
[1751993248646,13.40723648,150.28,150.27,0.1]
[1751993249062,7.45852859,150.28,150.27,0.1]
[1751993249661,7.45852859,150.28,150.27,6.04870789]
[1751993249857,147.47,150.29,150.27,6.04870789]
[1751993250087,147.47,150.29,150.28,5.94870789]
[1751993250372,147.47,150.29,150.28,12.60295329]
[1751993250373,154.94344222,150.29,150.28,12.60295329]
[1751993251886,154.94344222,150.29,150.28,5.94870789]
[1751993252353,147.47,150.29,150.28,24.59835675]
[1751993260086,147.47,150.29,150.28,31.25260215]
[1751993260387,154.9473677,150.29,150.28,31.25260215]
[1751993262573,154.9473677,150.29,150.28,24.59835675]
[1751993262777,154.94862243,150.29,150.28,24.59835675]
[1751993262978,154.94862243,150.29,150.28,18.64964886]
[1751993263172,154.94862243,150.29,150.28,24.59835675]
[1751993264592,154.94862243,150.29,150.28,31.25260215]
[1751993264786,147.47,150.29,150.28,29.11568341]
[1751993265179,154.94872259,150.29,150.28,29.11568341]